bitfinex-derivatives/quotes_ETHF0:USTF0_20241129
["timestamp","ask_amount","ask_price","bid_price","bid_amount"]
[1732868479875,2.86100995,3560.6,3560.5,40.8]
[1732868487286,2.86100995,3560.6,3560.5,40.88781567]
[1732868487580,2.86100995,3560.6,3560.5,40.88781533]
[1732868488479,2.58020995,3560.6,3559.9,3.6441]
[1732868488780,2.58020995,3560.2,3560.0,0.22832867]
[1732868488977,2.58020995,3560.2,3560.1,41.02832867]
[1732868489480,3.27594995,3560.2,3560.1,40.88781872]
[1732868490376,3.27594995,3560.2,3560.1,40.88782263]
[1732868490784,2.99510995,3560.2,3560.1,40.88782263]
[1732868491481,0.28082,3560.4,3560.1,41.02833122]
[1732868491680,0.28082,3560.4,3560.2,0.52362263]
[1732868491883,0.28082,3560.4,3560.3,0.08782263]
[1732868492377,0.28082,3560.4,3560.3,0.51962263]
[1732868494578,2.58020995,3560.5,3560.3,0.51962263]
[1732868494889,2.86101995,3560.5,3560.4,0.08782263]
[1732868497487,2.58020995,3560.5,3560.4,0.08781974]
[1732868497787,2.86101995,3560.5,3560.4,0.08781974]
[1732868498488,5.05516263,3560.5,3560.4,0.08781974]
[1732868498787,5.05516263,3560.5,3559.9,0.4363]
[1732868498788,4.77435263,3560.5,3559.9,0.4363]
[1732868498980,2.58020995,3560.1,3560.0,40.8]
[1732868499187,2.86748612,3560.1,3560.0,40.8]
[1732868500284,2.58664612,3560.1,3560.0,40.8]
[1732868500488,2.86748612,3560.1,3560.0,40.8]
[1732868500877,2.58664612,3560.1,3560.0,41.02834271]
[1732868501077,2.58664612,3560.1,3560.0,41.16867412]
[1732868501286,2.58664612,3560.1,3560.0,41.08085]
[1732868501485,2.58664612,3560.1,3560.0,40.8]
[1732868502088,2.58664612,3560.1,3560.0,41.02833442]
[1732868502386,2.58664612,3560.4,3560.0,41.02833442]
[1732868502586,2.58664612,3560.4,3560.1,0.28084]
[1732868502980,2.58664612,3560.4,3560.2,0.14050751]
[1732868503291,2.58664612,3560.7,3560.5,0.28081]
[1732868503478,2.58664612,3560.7,3560.6,1.5219247]
[1732868503680,2.58664612,3560.7,3560.6,1.8027247]
[1732868503985,2.58664612,3560.7,3560.6,42.6027247]
[1732868504389,2.58664612,3561.0,3560.6,42.3219247]
[1732868504588,2.58664612,3561.0,3560.7,3.78733491]
[1732868504791,2.5849232,3561.2,3560.9,0.28078]
[1732868504989,2.8656832,3561.2,3561.0,0.2283247]
[1732868505291,2.8656832,3561.2,3561.1,0.2283247]
[1732868505684,2.5849232,3561.2,3561.1,0.2283247]
[1732868506092,2.5849232,3561.2,3561.1,0.6679247]
[1732868506484,2.8656832,3561.2,3561.1,0.6679247]
[1732868507688,5.05982588,3561.2,3561.1,0.6679247]
[1732868507889,4.77906588,3561.2,3561.1,0.6679247]
[1732868508086,4.77906588,3561.2,3561.1,0.66787864]
[1732868508485,2.5849232,3561.2,3561.1,0.66787864]
[1732868508886,4.78123333,3561.2,3561.1,0.66787864]
[1732868509189,10.46176856,3561.2,3561.1,0.08779948]
[1732868509386,10.46176856,3561.2,3560.2,3.2078]
[1732868509387,10.18100856,3561.2,3560.3,0.51932756]
[1732868509588,2.8657432,3560.4,3560.3,0.425]
[1732868509895,5.06269405,3560.4,3560.3,0.56550745]
[1732868510096,5.06269405,3560.4,3560.3,0.14050745]
[1732868510097,3.7175432,3560.4,3560.3,0.14050745]
[1732868511394,3.4367232,3560.4,3560.0,0.08782093]
[1732868511596,2.19796891,3560.1,3560.0,0.08782093]
[1732868511797,2.19796891,3560.1,3560.0,0.22833332]
[1732868512990,2.47880891,3560.1,3560.0,0.14051239]
[1732868513191,2.8657632,3560.1,3560.0,0.14051239]
[1732868513497,0.28086,3559.9,3559.5,0.28089]
[1732868513689,2.5849232,3559.6,3559.5,0.28089]
[1732868513993,2.5849232,3559.6,3559.5,0.4918547]
[1732868514191,4.7841082,3559.6,3559.5,0.4918547]
[1732868514391,4.7841082,3559.6,3559.5,0.42141991]
[1732868516592,4.78571107,3559.6,3559.5,0.14052991]
[1732868516897,2.5849232,3559.6,3559.5,0.42141991]
[1732868517197,5.88370071,3559.6,3559.5,0.42141991]
[1732868518198,5.88898905,3559.6,3559.5,0.42141991]
[1732868518500,2.5849232,3559.6,3559.5,0.42141991]
[1732868519196,2.5849232,3559.6,3559.5,0.14052991]
[1732868520188,6.97320856,3559.6,3559.5,0.14052991]
[1732868520795,4.38828536,3559.6,3559.5,0.42141991]
[1732868520999,5.9190567,3559.8,3559.5,0.49183913]
[1732868521000,4.38828536,3559.8,3559.5,0.49183913]
[1732868521195,3.30634996,3559.7,3559.6,0.77271913]
[1732868521502,3.30634996,3559.8,3559.6,4.44383845]
[1732868521700,2.20531188,3559.7,3559.6,49.38300756]
[1732868521996,3.30634996,3560.1,3560.0,0.28085]
[1732868522195,3.30634996,3560.1,3560.0,4.06823048]
[1732868522500,2.5849232,3560.8,3560.0,3.78738048]
[1732868522501,3.30634996,3560.2,3560.0,3.78738048]
[1732868522703,3.30634996,3560.2,3560.1,0.86042048]
[1732868523196,2.5849232,3560.8,3560.1,0.67382665]
[1732868523197,3.30634996,3560.3,3560.1,0.67382665]
[1732868523405,3.30634996,3560.3,3560.2,0.86042048]
[1732868523698,3.30634996,3560.4,3560.2,0.67382665]
[1732868523901,3.30634996,3560.3,3560.2,0.28084]
[1732868524195,3.30634996,3560.3,3560.2,1.03598351]
[1732868527400,3.30634996,3560.3,3560.2,0.40391376]
[1732868527597,4.38828536,3560.3,3560.2,0.40391376]
[1732868527793,4.38828536,3560.3,3560.2,0.68475376]
[1732868528003,5.9171567,3560.4,3560.3,0.28083]
[1732868528199,0.4318,3560.4,3560.3,0.68474376]
[1732868528503,5.9171567,3560.4,3560.3,0.68474376]
[1732868530501,5.9171567,3560.4,3560.3,0.40391376]
[1732868530805,5.9171567,3560.4,3560.3,0.28083]
[1732868531109,5.4853567,3560.5,3560.4,0.28082]
[1732868531410,5.4853567,3560.7,3560.6,0.2808]
[1732868531705,5.7661467,3560.8,3560.6,41.20391851]
[1732868531906,5.4853567,3560.8,3560.7,0.40391851]
[1732868532105,8.0702799,3560.8,3560.7,0.40391851]
[1732868532713,8.0702799,3560.8,3560.7,0.68471851]
[1732868534711,8.0702799,3560.8,3560.7,0.68470094]
[1732868536310,2.5849232,3560.8,3560.7,0.68470094]
[1732868536508,8.0702799,3560.8,3560.7,0.68470094]
[1732868536713,2.5849232,3560.8,3560.7,0.68470094]
[1732868537602,5.4853567,3560.8,3560.7,0.54420868]
[1732868537801,5.9311567,3560.9,3560.8,0.28079]
[1732868538003,0.4458,3560.9,3560.8,0.68468331]
[1732868538410,5.95787347,3560.9,3560.8,0.68468331]
[1732868540210,7.20803656,3560.9,3560.8,0.68468331]
[1732868541909,1.69596309,3560.9,3560.8,0.68468331]
[1732868542102,1.69596309,3560.9,3560.8,3.89248331]
[1732868542407,6.10507267,3560.9,3560.8,3.48859]
[1732868542612,6.10507267,3560.9,3560.8,3.89245533]
[1732868542814,1.69596309,3560.9,3560.8,3.89245533]
[1732868543111,6.10491548,3560.9,3560.8,3.89245533]
[1732868543819,1.69596309,3560.9,3560.8,3.89245533]
[1732868546409,1.69596309,3560.9,3560.8,0.68465533]
[1732868547516,7.20803656,3560.9,3560.8,0.68465533]
[1732868549407,1.97674309,3560.9,3560.8,0.40386533]
[1732868550011,1.69596309,3560.9,3560.8,0.40386533]
[1732868550613,7.20739001,3560.9,3560.8,0.40386533]
[1732868551613,1.69596309,3560.9,3560.8,0.40386533]
[1732868552012,1.97674309,3560.9,3560.8,0.40386533]
[1732868552206,2.94612618,3560.9,3560.6,0.09426102]
[1732868552514,2.94612618,3560.9,3560.0,3.2078]
[1732868552515,2.50032618,3560.7,3560.1,0.09426102]
[1732868552715,6.76291272,3560.2,3560.1,0.28084]
[1732868552918,6.76291272,3560.2,3560.1,0.63212104]
[1732868553115,1.25016309,3560.2,3560.1,0.72638206]
[1732868553411,1.25016309,3560.2,3560.1,0.63212104]
[1732868553412,5.66034666,3560.2,3560.1,0.63212104]
[1732868553811,4.41018357,3560.2,3560.1,1.07072104]
[1732868554408,4.41018357,3560.4,3560.1,0.78988104]
[1732868554608,3.30748736,3560.3,3560.1,0.4386]
[1732868554821,3.30748736,3560.5,3560.2,2.47159463]
[1732868555117,3.30718896,3560.5,3560.4,3.48862]
[1732868555318,3.30718896,3560.5,3560.4,3.83981692]
[1732868555520,3.30718896,3560.5,3560.4,5.08998001]
[1732868555716,3.30718896,3560.5,3560.4,45.88998001]
[1732868556110,3.30718896,3560.5,3560.4,44.63981692]
[1732868556817,3.30718896,3560.6,3560.5,0.28081]
[1732868557014,3.30718896,3560.6,3560.5,0.63200692]
[1732868559210,4.41018357,3560.7,3560.6,0.2808]
[1732868559518,4.41018357,3560.7,3560.6,1.07459692]
[1732868560222,4.41018357,3560.7,3560.6,1.25019637]
[1732868560713,5.95929797,3560.9,3560.8,0.28079]
[1732868560920,5.95929797,3560.9,3560.8,0.80759879]
[1732868561121,0.4458,3560.9,3560.8,0.80759879]
[1732868561320,0.4458,3560.9,3560.8,0.45638945]
[1732868561521,0.4458,3560.9,3560.8,0.80759365]
[1732868562123,0.4458,3560.9,3560.8,0.9020411]
[1732868562322,0.4458,3560.9,3560.8,1.04252053]
[1732868562823,0.4458,3560.9,3560.8,0.94807308]
[1732868563219,0.4458,3560.9,3560.8,0.28079]
[1732868563721,0.4458,3560.9,3560.8,0.90202069]
[1732868564220,0.4458,3560.9,3560.8,0.94807641]
[1732868564631,0.4458,3560.9,3560.8,0.63199015]
[1732868565527,0.4458,3560.9,3560.8,0.8075908]
[1732868567116,0.4458,3560.9,3560.8,0.51574065]
[1732868567326,0.4458,3560.9,3560.8,0.98316918]
[1732868567721,0.4458,3560.9,3560.8,4.19096918]
[1732868569327,0.4458,3560.9,3560.8,4.19096896]
[1732868572232,0.4458,3560.9,3560.8,4.68898874]
[1732868573233,0.4458,3560.9,3560.8,4.68899808]
[1732868575830,0.4458,3560.9,3560.8,1.48119808]
[1732868576037,0.4458,3560.9,3560.8,4.68899808]
[1732868576232,1.69579992,3560.9,3560.8,4.68899808]
[1732868576837,1.69579992,3560.9,3560.8,4.688952]
[1732868577435,1.69579992,3560.9,3560.8,4.33776239]
[1732868577733,0.4143,3561.1,3560.8,4.05697239]
[1732868577940,2.07129992,3561.1,3561.0,0.28077]
[1732868578134,2.07129992,3561.1,3561.0,0.68463224]
[1732868578726,1.24999992,3561.1,3561.0,0.68463224]
[1732868578936,1.24999992,3561.1,3561.0,1.12991915]
[1732868580234,1.24999992,3561.1,3561.0,0.75501482]
[1732868580435,7.87860972,3561.1,3561.0,0.40384513]
[1732868580736,13.59752455,3561.1,3561.0,0.68461513]
[1732868581832,13.59752455,3561.1,3561.0,0.28077]
[1732868581833,8.31350972,3561.1,3561.0,0.28077]
[1732868582035,8.31350972,3561.1,3561.0,0.68462627]
[1732868582630,1.68489992,3561.1,3561.0,0.68462627]
[1732868583137,8.59427972,3561.1,3561.0,0.40385627]
[1732868583330,8.59427972,3561.1,3561.0,0.75503867]
[1732868583537,0.28078,3560.9,3560.7,0.09410603]
[1732868583741,13.44423776,3560.8,3560.6,0.37490603]
[1732868583939,6.62907631,3560.7,3560.6,0.37490603]
[1732868584143,6.62907631,3560.7,3560.6,0.72613328]
[1732868584344,7.87907623,3560.8,3560.6,0.72613328]
[1732868584542,7.87907623,3560.8,3560.7,0.35122725]
[1732868585037,13.16354577,3560.8,3560.7,0.35122725]
[1732868585345,0.2808,3560.7,3560.6,0.09410603]
[1732868585538,0.28081,3560.5,3560.4,3.2078]
[1732868585737,6.81527946,3560.5,3560.4,3.2078]
[1732868586636,7.22147946,3560.5,3560.4,3.2078]
[1732868587040,6.94066946,3560.5,3560.4,3.2078]
[1732868587242,12.31900372,3560.5,3560.4,3.48862]
[1732868587442,0.4062,3560.5,3560.4,3.83985838]
[1732868587642,0.4062,3560.5,3560.4,3.93396441]
[1732868587846,1.24999992,3560.6,3560.4,3.65314441]
[1732868588146,1.24999992,3560.6,3560.5,0.35123838]
[1732868588444,1.24999992,3560.6,3560.4,3.30190603]
[1732868588445,1.53079992,3560.6,3560.4,3.48862]
[1732868589244,1.24999992,3560.6,3560.4,3.48862]
[1732868589654,1.24999992,3560.6,3560.4,3.89292]
[1732868589853,1.24999992,3560.6,3560.5,0.28081]
[1732868590050,1.24999992,3560.6,3560.5,0.63203505]
[1732868590453,6.62833418,3560.8,3560.5,0.35122505]
[1732868590454,7.8783341,3560.8,3560.5,0.35122505]
[1732868590754,1.24999992,3560.8,3560.7,0.2808]
[1732868590946,1.24999992,3560.8,3560.7,0.63201919]
[1732868591552,1.24999992,3560.8,3560.7,0.80762092]
[1732868592552,1.24999992,3560.8,3560.7,0.8076223]
[1732868593656,0.4168,3561.0,3560.9,0.28078]
[1732868593848,0.4168,3561.0,3560.9,3.80466559]
[1732868594054,0.4168,3561.0,3560.9,4.15584581]
[1732868594356,0.4168,3561.0,3560.9,4.56734581]
[1732868594553,0.4168,3561.0,3560.9,4.21616559]
[1732868594850,0.4168,3561.0,3560.9,4.56735289]
[1732868595060,0.4168,3561.0,3560.9,4.21616559]
[1732868595249,0.4168,3561.0,3560.9,4.5673499]
[1732868595446,0.4168,3561.0,3560.9,4.303962]
[1732868596058,0.4168,3561.0,3560.9,3.90008]
[1732868596353,0.4168,3561.0,3560.9,4.65513521]
[1732868597057,0.4168,3561.0,3560.9,4.74293118]
[1732868598056,0.4168,3561.0,3560.9,4.46215118]
[1732868598253,0.69757,3561.0,3560.9,4.11096596]
[1732868598757,0.4168,3561.0,3560.9,3.98024596]
[1732868599260,0.69757,3561.0,3560.9,3.61166999]
[1732868599452,7.04513418,3561.0,3560.9,3.8924654]
[1732868599860,7.04513418,3561.0,3560.9,3.89246168]
[1732868599861,12.32805129,3561.0,3560.9,3.89246168]
[1732868600151,7.04513418,3561.0,3560.9,3.89246168]
[1732868600561,0.4168,3561.0,3560.9,3.89246168]
[1732868601659,0.4168,3561.0,3560.9,4.24364798]
[1732868602958,0.4168,3561.0,3560.9,4.24364493]
[1732868603256,0.4168,3561.0,3560.9,4.24362351]
[1732868604958,0.4168,3561.0,3560.9,3.89244026]
[1732868605150,0.4168,3561.0,3560.9,4.24362408]
[1732868606154,6.62833418,3561.1,3561.0,0.28077]
[1732868606353,6.62833418,3561.5,3561.0,2.53643347]
[1732868606659,0.4201,3561.6,3561.4,3.30180113]
[1732868606852,0.4201,3561.6,3561.5,1.47377386]
[1732868606853,1.67009992,3561.6,3561.5,1.47377386]
[1732868607354,6.62833418,3561.8,3561.7,0.28072]
[1732868607549,8.2926341,3561.9,3561.7,0.40381502]
[1732868607853,7.07213418,3562.0,3561.8,0.40381502]
[1732868608157,7.07213418,3562.0,3561.9,0.68451502]
[1732868608359,0.4438,3562.0,3561.9,41.48451502]
[1732868608855,3.780625,3562.0,3561.9,41.48451502]
[1732868609058,3.336825,3562.0,3561.9,41.48451502]
[1732868612862,3.336825,3562.0,3561.9,0.68451502]
[1732868613364,3.33250401,3562.0,3561.9,0.68451502]
[1732868613561,1.24999992,3562.1,3561.9,0.50894327]
[1732868613761,1.24999992,3562.1,3562.0,0.50893327]
[1732868613960,4.58174417,3562.1,3562.0,3.71673327]
[1732868614959,1.69379992,3562.3,3562.2,0.28068]
[1732868615165,1.69379992,3562.3,3562.2,0.50892327]
[1732868615463,1.69379992,3562.3,3562.2,0.36846587]
[1732868615656,5.02468399,3562.3,3562.2,0.36846587]
[1732868615858,5.02468399,3562.3,3562.2,0.50889563]
[1732868617470,0.4438,3562.3,3562.2,0.50889563]
[1732868618372,4.84650135,3562.3,3562.2,0.50889563]
[1732868619960,4.84650135,3562.3,3562.2,0.28068]
[1732868620167,4.84650135,3562.3,3562.2,0.50887007]
[1732868622068,4.84650135,3562.3,3562.2,0.22819007]
[1732868622468,4.84650135,3562.3,3562.2,0.50887007]
[1732868622770,4.84650135,3562.3,3562.2,0.22819007]
[1732868623363,0.28071,3561.8,3561.5,0.28073]
[1732868623568,3.90945,3562.5,3561.6,0.45628486]
[1732868623569,5.43918205,3561.7,3561.6,0.45628486]
[1732868623764,5.43918205,3561.7,3561.6,0.28073]
[1732868623970,2.13879992,3561.7,3561.6,0.28073]
[1732868624371,2.41951992,3561.7,3561.5,0.28073]
[1732868624672,1.16952,3561.7,3561.5,0.28073]
[1732868624869,0.8888,3561.7,3561.6,0.28073]
[1732868625066,0.4469,3561.7,3561.6,0.28073]
[1732868625263,3.7473257,3561.7,3561.6,0.28073]
[1732868627573,0.4469,3561.7,3561.6,0.28073]
[1732868629275,3.74740393,3561.7,3561.3,44.0078]
[1732868629571,4.96540385,3561.6,3561.4,0.28074]
[1732868629774,5.24613385,3561.6,3561.4,0.28074]
[1732868629975,3.30050393,3561.5,3561.4,0.28074]
[1732868631170,3.30050393,3561.5,3561.4,3.48854]
[1732868631370,1.66489992,3561.6,3561.4,3.2078]
[1732868631371,4.96540385,3561.6,3561.4,3.2078]
[1732868631573,4.96540385,3561.6,3561.5,0.28073]
[1732868632384,1.66489992,3561.6,3561.5,0.28073]
[1732868632773,1.66489992,3561.6,3561.4,3.2078]
[1732868633076,3.30181858,3561.5,3561.4,3.48853]
[1732868634278,3.58254858,3561.5,3561.4,3.2078]
[1732868634479,0.28073,3561.5,3561.4,3.2078]
[1732868634976,0.28077,3561.1,3560.8,0.71638]
[1732868635279,4.87269992,3561.6,3560.8,0.71638]
[1732868635280,1.24999992,3560.9,3560.8,0.71638]
[1732868635575,1.24999992,3560.9,3560.8,41.65685375]
[1732868635772,1.24999992,3560.9,3560.8,41.51638]
[1732868637775,1.24999992,3560.9,3560.8,42.27141958]
[1732868638370,1.24999992,3560.9,3560.8,41.92023838]
[1732868639376,4.40460604,3561.0,3560.9,0.28078]
[1732868639678,3.30495563,3561.0,3560.9,0.75502624]
[1732868639883,3.30495563,3561.0,3560.9,1.03580624]
[1732868640184,3.30495563,3561.0,3560.9,41.92571644]
[1732868640375,3.30495563,3561.0,3560.9,41.83580624]
[1732868640572,3.30495563,3561.1,3561.0,0.28077]
[1732868640779,3.15495563,3561.1,3561.0,0.72367]
[1732868640978,3.15495563,3561.1,3561.0,1.47869624]
[1732868641179,3.15495563,3561.1,3561.0,42.27869624]
[1732868643180,4.40495555,3561.1,3561.0,42.27869624]
[1732868643384,1.24999992,3561.1,3561.0,41.20385838]
[1732868643683,1.24999992,3561.1,3561.0,0.22826778]
[1732868643684,1.53076992,3561.1,3561.0,0.22826778]
[1732868643881,7.90002747,3561.1,3561.0,0.22826778]
[1732868644082,11.22836603,3561.1,3561.0,0.22826778]
[1732868646490,11.22836603,3561.1,3561.0,0.22827519]
[1732868646692,10.94759603,3561.1,3561.0,0.22827525]
[1732868646883,11.22836603,3561.1,3561.0,0.22827525]
[1732868647588,11.22875647,3561.1,3561.0,0.22827525]
[1732868647893,11.22875647,3561.1,3561.0,0.22827835]
[1732868649893,0.28077,3561.0,3560.9,40.8]
[1732868650100,3.609499,3561.0,3560.9,41.20387323]
[1732868650289,9.11525655,3561.0,3560.9,41.02827608]
[1732868650491,3.609499,3561.0,3560.9,0.22827608]
[1732868650996,3.609499,3561.0,3560.9,0.08779849]
[1732868651389,3.609499,3561.0,3560.9,0.22828457]
[1732868652493,3.60912496,3561.0,3560.9,0.22828457]
[1732868653391,3.32835496,3561.0,3560.9,0.22829336]
[1732868653591,3.60912496,3561.0,3560.9,0.22829336]
[1732868655094,5.78869161,3561.0,3560.9,0.22829336]
[1732868655297,9.11704657,3561.0,3560.9,0.22829336]
[1732868656900,9.11676385,3561.0,3560.9,0.22829336]
[1732868657600,3.32691193,3561.0,3560.9,0.68467816]
[1732868657804,7.62113881,3561.1,3561.0,0.28077]
[1732868657998,5.44028357,3561.1,3561.0,0.68466816]
[1732868658299,4.99271682,3561.1,3561.0,41.48466816]
[1732868658495,4.9927288,3561.1,3561.0,41.48466816]
[1732868658792,4.5767288,3561.1,3561.0,41.48466816]
[1732868658999,1.24999992,3561.1,3561.0,41.48466816]
[1732868659294,4.40547001,3561.3,3561.0,41.20389816]
[1732868659494,5.50763889,3561.5,3561.2,3.2078]
[1732868659495,4.40547001,3561.5,3561.2,3.2078]
[1732868659694,1.24999992,3561.4,3561.3,1.97248664]
[1732868660298,1.24999992,3561.4,3561.3,1.88251087]
[1732868660592,1.24999992,3561.4,3561.3,1.69170854]
[1732868660997,1.24999992,3561.4,3561.3,1.97245854]
[1732868663696,1.24999992,3561.4,3561.3,1.97240406]
[1732868664198,1.24999992,3561.4,3561.3,1.88239294]
[1732868664395,5.65546993,3561.4,3561.3,1.88239294]
[1732868664601,1.24999992,3561.4,3561.3,1.97240406]
[1732868665298,5.65546993,3561.4,3561.3,1.97240406]
[1732868665502,1.24999992,3561.4,3561.3,1.97240406]
[1732868665701,5.65546993,3561.4,3561.3,1.97240406]
[1732868666999,5.65546993,3561.4,3561.3,1.88239294]
[1732868667200,5.65546993,3561.4,3561.3,1.97240406]
[1732868667605,5.65546993,3561.4,3561.3,1.47858461]
[1732868667902,4.40547001,3561.5,3561.3,1.69152857]
[1732868668108,4.40547001,3561.5,3561.4,1.12555426]
[1732868668301,4.40547001,3561.5,3561.4,1.12555291]
[1732868668807,1.2715,3562.0,3561.4,1.12555291]
[1732868668808,1.24999992,3561.8,3561.4,0.75491999]
[1732868669005,5.50763889,3561.9,3561.5,1.1255157]
[1732868669006,1.24999992,3561.6,3561.5,1.1255157]
[1732868669199,1.24999992,3561.6,3561.5,1.12551678]
[1732868669397,1.24999992,3561.6,3561.5,1.12550039]
[1732868671409,1.24999992,3561.6,3561.5,1.12543391]
[1732868672012,1.24999992,3561.6,3561.5,1.12542585]
[1732868672304,1.24999992,3561.8,3561.6,0.28073]
[1732868672509,1.24999992,3561.8,3561.7,0.68449277]
[1732868673706,6.75763881,3562.0,3561.9,0.2807]
[1732868673906,6.60763881,3562.0,3561.9,0.68447277]
[1732868674298,1.53068992,3562.0,3561.9,0.40377277]
[1732868674504,1.53068992,3562.0,3561.9,0.22821939]
[1732868674700,1.24999992,3562.0,3561.9,0.4037709]
[1732868674911,1.24999992,3562.0,3561.9,0.40376388]
[1732868675409,1.24999992,3562.0,3561.9,0.50891448]
[1732868675705,1.24999992,3562.0,3561.9,0.68446087]
[1732868678513,1.24999992,3562.0,3561.9,0.2807]
[1732868678709,1.24999992,3562.0,3561.9,0.684446]
[1732868680014,1.24999992,3562.0,3561.9,1.117846]
[1732868680214,1.24999992,3562.0,3561.9,41.917846]
[1732868681916,1.24999992,3562.0,3561.9,41.91784427]
[1732868682706,0.4092,3562.3,3561.9,41.63714427]
[1732868682910,7.98161331,3563.0,3562.6,0.28065]
[1732868683112,1.24999992,3562.9,3562.8,0.28063]
[1732868683410,1.24999992,3562.9,3562.8,0.50880746]
[1732868683609,0.8256,3563.0,3562.8,0.22817746]
[1732868683810,3.2078,3563.2,3563.1,0.28061]
[1732868684110,3.2078,3563.2,3563.1,0.50878746]
[1732868684320,1.24999992,3563.4,3563.1,0.22817746]
[1732868684513,1.2528,3563.5,3563.2,0.40366223]
[1732868684817,0.4181,3563.5,3563.4,0.28058]
[1732868685014,0.4181,3563.5,3563.4,0.50875746]
[1732868685211,0.4181,3563.5,3563.4,0.28058]
[1732868685413,1.11524,3564.0,3563.7,0.28056]
[1732868685618,1.24999992,3563.8,3563.7,0.28056]
[1732868685920,1.24999992,3563.8,3563.7,0.36829214]
[1732868686114,1.24999992,3563.8,3563.7,41.16829214]
[1732868686415,1.24999992,3563.8,3563.7,41.30865999]
[1732868686614,2.19753763,3563.8,3563.7,41.30865999]
[1732868686813,2.19753763,3564.1,3563.7,42.4535436]
[1732868687020,1.24999992,3563.8,3563.7,41.08056]
[1732868687216,1.24999992,3563.8,3563.7,41.48407312]
[1732868687516,2.19753763,3564.2,3563.8,0.28055]
[1732868687517,1.24999992,3563.9,3563.8,0.28055]
[1732868687816,1.24999992,3563.9,3563.8,0.22807263]
[1732868688516,1.24999992,3563.9,3563.8,0.50862263]
[1732868688908,1.24999992,3563.9,3563.8,0.50862702]
[1732868689620,1.24999992,3563.9,3563.8,0.22807702]
[1732868690314,1.24999992,3563.9,3563.8,0.08772193]
[1732868692619,1.24999992,3563.9,3563.8,0.28055]
[1732868692814,0.4419,3564.0,3563.7,0.28056]
[1732868693210,0.4419,3564.0,3563.8,0.08772484]
[1732868693512,0.4419,3564.0,3563.9,0.08772484]
[1732868693714,0.4419,3564.0,3563.9,0.08772543]
[1732868697023,0.72244,3564.0,3563.9,0.08772615]
[1732868697220,4.36334,3564.0,3563.9,0.08772615]
[1732868697424,4.36334,3564.0,3563.9,0.08773255]
[1732868697425,5.33279992,3564.0,3563.9,0.08773255]
[1732868697634,5.61333992,3564.0,3563.9,0.08773255]
[1732868700616,5.61333992,3564.0,3563.4,1.084]
[1732868700617,5.33279992,3564.0,3563.4,1.084]
[1732868700923,5.33279992,3564.0,3563.6,0.28056]
[1732868700924,1.53054992,3563.9,3563.6,0.28056]
[1732868701221,2.64523763,3564.3,3563.7,1.33773266]
[1732868701222,0.4477,3564.3,3563.7,1.33773266]
[1732868701428,0.4477,3564.3,3563.8,0.22809973]
[1732868701723,1.69769992,3564.3,3564.0,0.28054]
[1732868702022,1.97821992,3564.3,3564.1,0.22809973]
[1732868702227,1.97821992,3564.3,3564.2,0.08773274]
[1732868702930,0.72822,3564.3,3564.2,0.08772162]
[1732868703120,1.97821992,3564.3,3564.2,0.08772162]
[1732868703433,1.97821992,3564.3,3564.2,0.22807424]
[1732868703925,1.69769992,3564.3,3564.2,0.50859424]
[1732868704529,0.4477,3564.3,3564.2,0.50859424]
[1732868705522,4.45779992,3564.4,3564.3,0.28051]
[1732868705728,4.45779992,3564.4,3564.3,0.50858424]
[1732868705928,4.45779992,3564.4,3564.3,0.22807424]
[1732868706621,3.2078,3564.4,3564.3,0.50858424]
[1732868706826,3.2078,3564.4,3564.3,0.68401594]
[1732868709125,3.2078,3564.4,3564.3,0.40350594]
[1732868709329,3.48831,3564.4,3564.3,0.40350594]
[1732868709525,3.2078,3564.4,3564.3,0.40350594]
[1732868709726,3.2078,3564.4,3564.3,0.4034961]
[1732868710022,3.48831,3564.4,3564.3,0.4034948]
[1732868713235,3.2078,3564.4,3564.3,0.40351455]
[1732868713435,3.48831,3564.4,3564.3,0.49309496]
[1732868713630,3.48831,3564.4,3564.3,0.40351455]
[1732868714330,3.48831,3564.4,3564.3,0.49309496]
[1732868715231,3.2078,3564.4,3564.1,0.28053]
[1732868715433,1.97661992,3564.3,3564.1,0.28053]
[1732868715639,0.8534,3564.2,3564.1,0.28053]
[1732868715834,0.8534,3564.2,3564.1,0.80142687]
[1732868715835,0.4187,3564.2,3564.1,0.80142687]
[1732868716027,0.69922,3564.2,3564.1,0.74896573]
[1732868716836,0.69922,3564.2,3564.1,0.74898153]
[1732868717036,0.4187,3564.2,3564.1,1.02951153]
[1732868717833,0.4187,3564.2,3564.1,0.74898153]
[1732868718131,0.69922,3564.2,3564.1,0.74898153]
[1732868718538,0.69922,3564.2,3564.1,0.49316261]
[1732868718938,0.4461,3564.3,3564.1,0.74908545]
[1732868719141,2.19753763,3564.5,3564.2,0.74908545]
[1732868719342,2.47802763,3564.6,3564.4,0.28051]
[1732868719537,3.28452437,3564.7,3564.5,0.49312225]
[1732868719538,2.47801763,3564.7,3564.5,0.49312225]
[1732868719844,2.47801763,3564.7,3564.6,41.20352217]
[1732868720145,0.28048,3564.7,3564.6,41.20352217]
[1732868720344,2.47525968,3564.7,3564.6,41.20352217]
[1732868720539,2.19477968,3564.7,3564.6,41.20352217]
[1732868720734,6.77280437,3564.8,3564.6,41.48401217]
[1732868720945,2.47526503,3564.7,3564.6,40.8]
[1732868721140,6.77280437,3564.8,3564.6,41.20348331]
[1732868721335,2.19538309,3564.8,3564.7,1.93396323]
[1732868721740,2.19538309,3564.9,3564.7,1.74308331]
[1732868721944,2.19538309,3565.0,3564.9,0.28047]
[1732868722146,2.19538309,3565.0,3564.9,0.49305066]
[1732868722444,2.19538309,3565.0,3564.9,41.57351066]
[1732868723336,2.19538309,3565.0,3564.9,42.33045992]
[1732868723542,2.19538309,3565.1,3565.0,0.28046]
[1732868723742,2.19538309,3565.1,3565.0,0.68388161]
[1732868723943,2.19538309,3565.1,3565.0,1.09488161]
[1732868724239,3.28452437,3565.2,3565.1,0.28045]
[1732868724240,2.19646107,3565.2,3565.1,0.28045]
[1732868724445,2.19646107,3565.2,3565.1,41.48387161]
[1732868724743,2.19646107,3565.3,3565.2,0.28044]
[1732868724953,2.19646107,3565.3,3565.2,0.68386161]
[1732868725246,3.28452437,3565.4,3565.2,0.68386161]
[1732868725444,1.24999992,3565.3,3565.0,0.08953062]
[1732868725651,3.44715679,3565.1,3565.0,0.28046]
[1732868725839,3.44715679,3565.1,3565.0,0.68387766]
[1732868726247,3.44783772,3565.1,3565.0,0.68387766]
[1732868726950,4.82618523,3565.1,3565.0,0.40341766]
[1732868727248,1.53044992,3565.1,3565.0,0.40341766]
[1732868727444,4.37836976,3565.1,3565.0,0.68387766]
[1732868727660,3.29848962,3565.1,3565.0,0.40341766]
[1732868727946,2.19895483,3565.1,3565.0,0.77340828]
[1732868728145,2.19895483,3565.1,3565.0,0.49294828]
[1732868728146,3.29848962,3565.1,3565.0,0.49294828]